[Event "Titled Tuesday Blitz August 24 2021"]
[White "Lopez Del Alamo, Antonio"]
[Black "Wagner, Dinara"]
[WhiteFideId "2227339"]
[BlackFideId "24157570"]
[WhiteElo "2085"]
[BlackElo "2260"]
[Result "1-0"]
[Round "10"]
[TimeControl "180+1"]
[Date "2021.08.24"]
[WhiteClock "0:00:12"]
[BlackClock "0:00:15"]

1. e4 {[%clk 0:03:00]}  e5 {[%clk 0:02:56]} 2. Bc4 {[%clk 0:02:59]}  Nc6 {[%clk 0:02:56]} 3. d3 {[%clk 0:02:59]}  Nf6 {[%clk 0:02:54]} 4. Nc3 {[%clk 0:02:58]}  Bc5 {[%clk 0:02:54]} 5. f4 {[%clk 0:02:57]}  d6 {[%clk 0:02:52]} 6. Nf3 {[%clk 0:02:57]}  Bg4 {[%clk 0:02:51]} 7. Bb5 {[%clk 0:02:56]}  O-O {[%clk 0:02:50]} 8. Bxc6 {[%clk 0:02:55]}  bxc6 {[%clk 0:02:50]} 9. fxe5 {[%clk 0:02:56]}  dxe5 {[%clk 0:02:49]} 10. Qe2 {[%clk 0:02:56]}  Bd4 {[%clk 0:02:46]} 11. Nd1 {[%clk 0:02:54]}  Rb8 {[%clk 0:02:44]} 12. h3 {[%clk 0:02:49]}  Bh5 {[%clk 0:02:43]} 13. g4 {[%clk 0:02:48]}  Bg6 {[%clk 0:02:43]} 14. c3 {[%clk 0:02:47]}  Bb6 {[%clk 0:02:42]} 15. Nxe5 {[%clk 0:02:46]}  Qd6 {[%clk 0:02:32]} 16. Bf4 {[%clk 0:02:43]}  Qe6 {[%clk 0:02:32]} 17. Nxg6 {[%clk 0:02:20]}  hxg6 {[%clk 0:02:31]} 18. Ne3 {[%clk 0:02:16]}  Rbd8 {[%clk 0:02:27]} 19. O-O {[%clk 0:02:09]}  Rfe8 {[%clk 0:02:22]} 20. Kg2 {[%clk 0:02:05]}  Nd7 {[%clk 0:02:18]} 21. Nc4 {[%clk 0:01:58]}  Nc5 {[%clk 0:02:17]} 22. Rad1 {[%clk 0:01:56]}  Nxd3 {[%clk 0:02:13]} 23. Rxd3 {[%clk 0:01:54]}  Qxc4 {[%clk 0:02:13]} 24. Rfd1 {[%clk 0:01:54]}  Rxd3 {[%clk 0:02:05]} 25. Qxd3 {[%clk 0:01:53]}  Qxa2 {[%clk 0:02:01]} 26. Rd2 {[%clk 0:01:46]}  Qe6 {[%clk 0:01:55]} 27. Kf3 {[%clk 0:01:41]}  Qf6 {[%clk 0:01:53]} 28. g5 {[%clk 0:01:39]}  Qe6 {[%clk 0:01:53]} 29. Kg3 {[%clk 0:01:36]}  Kh7 {[%clk 0:01:42]} 30. h4 {[%clk 0:01:32]}  Qa2 {[%clk 0:01:34]} 31. Qd7 {[%clk 0:01:21]}  Rxe4 {[%clk 0:01:33]} 32. h5 {[%clk 0:01:12]}  gxh5 {[%clk 0:01:30]} 33. Qf5+ {[%clk 0:01:11]}  g6 {[%clk 0:01:25]} 34. Qxe4 {[%clk 0:01:09]}  Qa1 {[%clk 0:01:25]} 35. Rg2 {[%clk 0:00:54]}  Qh1 {[%clk 0:01:17]} 36. Qf3 {[%clk 0:00:48]}  Bc5 {[%clk 0:00:40]} 37. Be5 {[%clk 0:00:33]}  Qe1+ {[%clk 0:00:38]} 38. Kh3 {[%clk 0:00:31]}  Qxe5 {[%clk 0:00:34]} 39. Qxf7+ {[%clk 0:00:31]}  Kh8 {[%clk 0:00:34]} 40. Qf6+ {[%clk 0:00:22]}  Qxf6 {[%clk 0:00:32]} 41. gxf6 {[%clk 0:00:23]}  Kh7 {[%clk 0:00:29]} 42. Re2 {[%clk 0:00:22]}  g5 {[%clk 0:00:27]} 43. Re7+ {[%clk 0:00:18]}  Kg6 {[%clk 0:00:26]} 44. Rxc7 {[%clk 0:00:18]}  g4+ {[%clk 0:00:21]} 45. Kg2 {[%clk 0:00:18]}  Be3 {[%clk 0:00:20]} 46. Rxc6 {[%clk 0:00:17]}  h4 {[%clk 0:00:20]} 47. b4 {[%clk 0:00:17]}  h3+ {[%clk 0:00:20]} 48. Kg3 {[%clk 0:00:16]}  Kg5 {[%clk 0:00:17]} 49. f7 {[%clk 0:00:17]}  Bf4+ {[%clk 0:00:16]} 50. Kf2 {[%clk 0:00:17]}  g3+ {[%clk 0:00:17]} 51. Kf3 {[%clk 0:00:16]}  g2 {[%clk 0:00:17]} 52. Rc5+ {[%clk 0:00:15]}  Kg6 {[%clk 0:00:16]} 53. f8=Q {[%clk 0:00:12]}  g1=Q {[%clk 0:00:15]} 54. Qg8+ {[%clk 0:00:12]}  Kf6 {[%clk 0:00:15]} 55. Qxg1 {[%clk 0:00:12]} 1-0


[Site "https://www.chess.com"]

[Event "Titled Tuesday Blitz August 24 2021"]
[White "Maly, Alexey"]
[Black "Obolentseva, Alexandra"]
[WhiteFideId "14103184"]
[BlackFideId "24153648"]
[WhiteElo "2250"]
[BlackElo "2113"]
[Result "1/2-1/2"]
[Round "10"]
[TimeControl "180+1"]
[Date "2021.08.24"]
[WhiteClock "0:00:06"]
[BlackClock "0:00:18"]

1. d4 {[%clk 0:03:00]}  Nf6 {[%clk 0:02:58]} 2. c4 {[%clk 0:03:00]}  g6 {[%clk 0:02:57]} 3. Nc3 {[%clk 0:03:00]}  Bg7 {[%clk 0:02:58]} 4. e4 {[%clk 0:03:00]}  O-O {[%clk 0:02:58]} 5. Be2 {[%clk 0:03:00]}  d6 {[%clk 0:02:59]} 6. Nf3 {[%clk 0:03:01]}  e5 {[%clk 0:02:59]} 7. O-O {[%clk 0:03:01]}  exd4 {[%clk 0:02:58]} 8. Nxd4 {[%clk 0:03:01]}  Re8 {[%clk 0:02:59]} 9. f3 {[%clk 0:03:01]}  c6 {[%clk 0:03:00]} 10. Nc2 {[%clk 0:03:01]}  d5 {[%clk 0:02:48]} 11. cxd5 {[%clk 0:02:59]}  cxd5 {[%clk 0:02:48]} 12. exd5 {[%clk 0:02:59]}  Nbd7 {[%clk 0:02:46]} 13. Kh1 {[%clk 0:02:56]}  Nb6 {[%clk 0:02:46]} 14. Ne3 {[%clk 0:02:55]}  Nh5 {[%clk 0:02:39]} 15. Bb5 {[%clk 0:02:54]}  Bd7 {[%clk 0:02:38]} 16. Bxd7 {[%clk 0:02:54]}  Qxd7 {[%clk 0:02:39]} 17. a4 {[%clk 0:02:45]}  Rad8 {[%clk 0:01:59]} 18. a5 {[%clk 0:02:44]}  Na8 {[%clk 0:01:52]} 19. Qb3 {[%clk 0:02:41]}  Nf4 {[%clk 0:01:47]} 20. Ra4 {[%clk 0:02:37]}  Nd3 {[%clk 0:01:46]} 21. Re4 {[%clk 0:02:34]}  Rxe4 {[%clk 0:01:37]} 22. Nxe4 {[%clk 0:02:25]}  Nxc1 {[%clk 0:01:33]} 23. Rxc1 {[%clk 0:02:25]}  Rc8 {[%clk 0:01:23]} 24. Rxc8+ {[%clk 0:02:11]}  Qxc8 {[%clk 0:01:24]} 25. Qc4 {[%clk 0:02:03]}  Qd8 {[%clk 0:01:24]} 26. d6 {[%clk 0:01:59]}  Bxb2 {[%clk 0:01:21]} 27. Nd5 {[%clk 0:01:50]}  Qxa5 {[%clk 0:01:14]} 28. Ne7+ {[%clk 0:01:43]}  Kg7 {[%clk 0:01:13]} 29. g3 {[%clk 0:01:26]}  Nb6 {[%clk 0:01:08]} 30. Qc2 {[%clk 0:00:59]}  Bd4 {[%clk 0:01:05]} 31. Kg2 {[%clk 0:00:55]}  Qb5 {[%clk 0:00:57]} 32. Qd2 {[%clk 0:00:49]}  Qb2 {[%clk 0:00:54]} 33. Qxb2 {[%clk 0:00:46]}  Bxb2 {[%clk 0:00:55]} 34. Nc5 {[%clk 0:00:46]}  Ba3 {[%clk 0:00:55]} 35. Nxb7 {[%clk 0:00:40]}  a5 {[%clk 0:00:52]} 36. Nxa5 {[%clk 0:00:34]}  Bxd6 {[%clk 0:00:51]} 37. Nec6 {[%clk 0:00:34]}  Bc5 {[%clk 0:00:46]} 38. Nb3 {[%clk 0:00:32]}  Be3 {[%clk 0:00:45]} 39. Ne5 {[%clk 0:00:31]}  Nd5 {[%clk 0:00:45]} 40. f4 {[%clk 0:00:30]}  f6 {[%clk 0:00:44]} 41. Nd3 {[%clk 0:00:30]}  g5 {[%clk 0:00:44]} 42. fxg5 {[%clk 0:00:29]}  fxg5 {[%clk 0:00:45]} 43. Kf3 {[%clk 0:00:29]}  Bg1 {[%clk 0:00:43]} 44. h3 {[%clk 0:00:28]}  h5 {[%clk 0:00:42]} 45. Nbc5 {[%clk 0:00:26]}  Bxc5 {[%clk 0:00:39]} 46. Nxc5 {[%clk 0:00:26]}  Kg6 {[%clk 0:00:38]} 47. Ke4 {[%clk 0:00:26]}  Nf6+ {[%clk 0:00:38]} 48. Ke5 {[%clk 0:00:25]}  h4 {[%clk 0:00:37]} 49. g4 {[%clk 0:00:23]}  Ne8 {[%clk 0:00:29]} 50. Ne6 {[%clk 0:00:20]}  Nf6 {[%clk 0:00:25]} 51. Nd4 {[%clk 0:00:14]}  Nd7+ {[%clk 0:00:24]} 52. Ke6 {[%clk 0:00:12]}  Nc5+ {[%clk 0:00:24]} 53. Kd5 {[%clk 0:00:10]}  Nd3 {[%clk 0:00:24]} 54. Nf3 {[%clk 0:00:06]}  Nf4+ {[%clk 0:00:24]} 55. Ke4 {[%clk 0:00:06]}  Nxh3 {[%clk 0:00:25]} 56. Ne5+ {[%clk 0:00:06]}  Kf6 {[%clk 0:00:23]} 57. Nd7+ {[%clk 0:00:06]}  Ke6 {[%clk 0:00:22]} 58. Nc5+ {[%clk 0:00:06]}  Kf7 {[%clk 0:00:20]} 59. Kf5 {[%clk 0:00:05]}  Nf2 {[%clk 0:00:20]} 60. Ne6 {[%clk 0:00:02]}  Nh3 {[%clk 0:00:18]} 61. Nd4 {[%clk 0:00:01]}  Kg7 {[%clk 0:00:18]} 62. Nf3 {[%clk 0:00:01]}  Kh6 {[%clk 0:00:18]} 63. Ke4 {[%clk 0:00:01]}  Nf4 {[%clk 0:00:18]} 64. Kf5 {[%clk 0:00:01]}  h3 {[%clk 0:00:18]} 65. Nh2 {[%clk 0:00:01]}  Ng2 {[%clk 0:00:15]} 66. Ke4 {[%clk 0:00:02]}  Nh4 {[%clk 0:00:13]} 67. Ke3 {[%clk 0:00:02]}  Ng6 {[%clk 0:00:12]} 68. Kf2 {[%clk 0:00:02]}  Nf4 {[%clk 0:00:13]} 69. Kg3 {[%clk 0:00:02]}  Kg6 {[%clk 0:00:14]} 70. Nf3 {[%clk 0:00:03]}  Kf6 {[%clk 0:00:14]} 71. Ng1 {[%clk 0:00:03]}  Ke5 {[%clk 0:00:14]} 72. Nxh3 {[%clk 0:00:03]}  Nxh3 {[%clk 0:00:15]} 73. Kxh3 {[%clk 0:00:03]}  Kf4 {[%clk 0:00:15]} 74. Kh2 {[%clk 0:00:04]}  Kxg4 {[%clk 0:00:15]} 75. Kg2 {[%clk 0:00:04]}  Kf4 {[%clk 0:00:16]} 76. Kf2 {[%clk 0:00:04]}  g4 {[%clk 0:00:16]} 77. Kg2 {[%clk 0:00:05]}  g3 {[%clk 0:00:17]} 78. Kg1 {[%clk 0:00:05]}  Kg4 {[%clk 0:00:17]} 79. Kg2 {[%clk 0:00:05]}  Kh4 {[%clk 0:00:17]} 80. Kg1 {[%clk 0:00:05]}  Kg4 {[%clk 0:00:16]} 81. Kg2 {[%clk 0:00:05]}  Kf4 {[%clk 0:00:17]} 82. Kg1 {[%clk 0:00:05]}  Kf3 {[%clk 0:00:18]} 83. Kf1 {[%clk 0:00:05]}  g2+ {[%clk 0:00:18]} 84. Kg1 {[%clk 0:00:06]}  Kg3 {[%clk 0:00:18]} 1/2-1/2


[Site "https://www.chess.com"]

[Event "Titled Tuesday Blitz August 24 2021"]
[White "Martin Carmona, Gaston Manuel"]
[Black "Potapova, Margarita"]
[WhiteFideId "22284567"]
[BlackFideId "14126869"]
[WhiteElo "2161"]
[BlackElo "2214"]
[Result "0-1"]
[Round "10"]
[TimeControl "180+1"]
[Date "2021.08.24"]
[WhiteClock "0:00:26"]
[BlackClock "0:00:19"]

1. e4 {[%clk 0:03:00]}  c5 {[%clk 0:02:59]} 2. Nf3 {[%clk 0:03:00]}  d6 {[%clk 0:03:00]} 3. d4 {[%clk 0:03:01]}  cxd4 {[%clk 0:03:01]} 4. Nxd4 {[%clk 0:03:02]}  Nf6 {[%clk 0:03:01]} 5. Nc3 {[%clk 0:03:03]}  a6 {[%clk 0:03:02]} 6. Be2 {[%clk 0:03:00]}  e5 {[%clk 0:03:02]} 7. Nb3 {[%clk 0:03:00]}  Be7 {[%clk 0:03:02]} 8. O-O {[%clk 0:03:00]}  O-O {[%clk 0:03:03]} 9. Kh1 {[%clk 0:03:00]}  b5 {[%clk 0:02:53]} 10. a4 {[%clk 0:02:59]}  b4 {[%clk 0:02:49]} 11. Nd5 {[%clk 0:03:00]}  Nxd5 {[%clk 0:02:49]} 12. Qxd5 {[%clk 0:02:59]}  Ra7 {[%clk 0:02:49]} 13. Be3 {[%clk 0:02:55]}  Be6 {[%clk 0:02:49]} 14. Qa5 {[%clk 0:02:52]}  Qxa5 {[%clk 0:02:15]} 15. Nxa5 {[%clk 0:02:53]}  Rc7 {[%clk 0:02:14]} 16. Rfc1 {[%clk 0:02:51]}  Rfc8 {[%clk 0:01:58]} 17. Bd3 {[%clk 0:02:47]}  d5 {[%clk 0:01:56]} 18. Nb3 {[%clk 0:02:21]}  d4 {[%clk 0:01:54]} 19. Bd2 {[%clk 0:02:18]}  g6 {[%clk 0:01:16]} 20. f3 {[%clk 0:02:11]}  Bc4 {[%clk 0:01:11]} 21. f4 {[%clk 0:02:09]}  Nd7 {[%clk 0:01:04]} 22. Na5 {[%clk 0:01:33]}  Bxd3 {[%clk 0:01:02]} 23. cxd3 {[%clk 0:01:34]}  Rc2 {[%clk 0:00:51]} 24. Nc4 {[%clk 0:01:22]}  R8xc4 {[%clk 0:00:51]} 25. dxc4 {[%clk 0:01:17]}  Rxd2 {[%clk 0:00:52]} 26. fxe5 {[%clk 0:01:16]}  Nc5 {[%clk 0:00:46]} 27. Rd1 {[%clk 0:01:14]}  Rxd1+ {[%clk 0:00:44]} 28. Rxd1 {[%clk 0:01:15]}  d3 {[%clk 0:00:45]} 29. Kg1 {[%clk 0:01:12]}  Bf8 {[%clk 0:00:41]} 30. Kf2 {[%clk 0:01:03]}  Bg7 {[%clk 0:00:41]} 31. b3 {[%clk 0:01:00]}  Bxe5 {[%clk 0:00:38]} 32. g3 {[%clk 0:01:00]}  Bc3 {[%clk 0:00:33]} 33. Rb1 {[%clk 0:00:53]}  d2 {[%clk 0:00:32]} 34. Ke2 {[%clk 0:00:50]}  Nxe4 {[%clk 0:00:31]} 35. Rf1 {[%clk 0:00:45]}  f5 {[%clk 0:00:31]} 36. Kd3 {[%clk 0:00:42]}  Kf7 {[%clk 0:00:27]} 37. Kc2 {[%clk 0:00:42]}  Ke6 {[%clk 0:00:27]} 38. Rf3 {[%clk 0:00:39]}  Ke5 {[%clk 0:00:24]} 39. Rd3 {[%clk 0:00:39]}  Nf2 {[%clk 0:00:20]} 40. Rd7 {[%clk 0:00:24]}  d1=Q+ {[%clk 0:00:20]} 41. Rxd1 {[%clk 0:00:25]}  Nxd1 {[%clk 0:00:20]} 42. Kxd1 {[%clk 0:00:26]}  Kd4 {[%clk 0:00:20]} 43. Ke2 {[%clk 0:00:27]}  Ke4 {[%clk 0:00:18]} 44. Kf2 {[%clk 0:00:26]}  Bd4+ {[%clk 0:00:18]} 45. Ke2 {[%clk 0:00:26]}  g5 {[%clk 0:00:19]} 0-1


[Site "https://www.chess.com"]

[Event "Titled Tuesday Blitz August 24 2021"]
[White "Molina, Roberto Junio Brito"]
[Black "Nazaretyan, Tigran"]
[WhiteFideId "2109450"]
[BlackFideId "24162345"]
[WhiteElo "2402"]
[BlackElo "2167"]
[Result "1/2-1/2"]
[Round "10"]
[TimeControl "180+1"]
[Date "2021.08.24"]
[WhiteClock "0:01:37"]
[BlackClock "0:02:07"]

1. d4 {[%clk 0:03:00]}  Nf6 {[%clk 0:02:54]} 2. c4 {[%clk 0:02:59]}  c5 {[%clk 0:02:49]} 3. d5 {[%clk 0:02:59]}  b5 {[%clk 0:02:49]} 4. cxb5 {[%clk 0:03:00]}  a6 {[%clk 0:02:49]} 5. b6 {[%clk 0:02:59]}  d6 {[%clk 0:02:49]} 6. Nc3 {[%clk 0:02:58]}  Nbd7 {[%clk 0:02:49]} 7. e4 {[%clk 0:02:57]}  g6 {[%clk 0:02:48]} 8. a4 {[%clk 0:02:57]}  a5 {[%clk 0:02:48]} 9. Nf3 {[%clk 0:02:56]}  Bg7 {[%clk 0:02:48]} 10. Nd2 {[%clk 0:02:53]}  O-O {[%clk 0:02:46]} 11. Bb5 {[%clk 0:02:50]}  Nxb6 {[%clk 0:02:46]} 12. O-O {[%clk 0:02:50]}  e6 {[%clk 0:02:46]} 13. Nc4 {[%clk 0:02:31]}  exd5 {[%clk 0:02:37]} 14. Nxb6 {[%clk 0:02:20]}  Qxb6 {[%clk 0:02:35]} 15. exd5 {[%clk 0:01:55]}  Bg4 {[%clk 0:02:28]} 16. f3 {[%clk 0:01:50]}  Bd7 {[%clk 0:02:28]} 17. Be3 {[%clk 0:01:45]}  Rfe8 {[%clk 0:02:27]} 18. Bf2 {[%clk 0:01:42]}  Bxb5 {[%clk 0:02:23]} 19. axb5 {[%clk 0:01:41]}  Re5 {[%clk 0:02:13]} 20. Qd3 {[%clk 0:01:37]}  Qb7 {[%clk 0:02:06]} 21. Rfd1 {[%clk 0:01:34]}  Qe7 {[%clk 0:01:48]} 22. Re1 {[%clk 0:01:01]}  Nd7 {[%clk 0:01:42]} 23. f4 {[%clk 0:00:58]}  Rxe1+ {[%clk 0:01:40]} 24. Rxe1 {[%clk 0:00:58]}  Qf6 {[%clk 0:01:36]} 25. g3 {[%clk 0:00:53]}  a4 {[%clk 0:01:33]} 26. Re2 {[%clk 0:00:43]}  a3 {[%clk 0:01:33]} 27. Ne4 {[%clk 0:00:42]}  Qxb2 {[%clk 0:01:26]} 28. Rxb2 {[%clk 0:00:38]}  axb2 {[%clk 0:01:27]} 29. Nd2 {[%clk 0:00:35]}  Ra1+ {[%clk 0:01:25]} 30. Nb1 {[%clk 0:00:33]}  Nb6 {[%clk 0:01:16]} 31. Kg2 {[%clk 0:00:31]}  Nxd5 {[%clk 0:01:06]} 32. Qxd5 {[%clk 0:00:22]}  Rxb1 {[%clk 0:01:06]} 33. Qa8+ {[%clk 0:00:21]}  Bf8 {[%clk 0:01:05]} 34. Qa2 {[%clk 0:00:20]}  Ra1 {[%clk 0:00:52]} 35. Qxb2 {[%clk 0:00:20]}  Bg7 {[%clk 0:00:53]} 36. Qxa1 {[%clk 0:00:16]}  Bxa1 {[%clk 0:00:51]} 37. b6 {[%clk 0:00:16]}  c4 {[%clk 0:00:46]} 38. b7 {[%clk 0:00:16]}  c3 {[%clk 0:00:47]} 39. b8=Q+ {[%clk 0:00:16]}  Kg7 {[%clk 0:00:47]} 40. Qb3 {[%clk 0:00:16]}  h5 {[%clk 0:00:45]} 41. Bd4+ {[%clk 0:00:15]}  Kh6 {[%clk 0:00:46]} 42. Bxc3 {[%clk 0:00:14]}  d5 {[%clk 0:00:43]} 43. Bxa1 {[%clk 0:00:14]}  f5 {[%clk 0:00:44]} 44. Qxd5 {[%clk 0:00:12]}  h4 {[%clk 0:00:44]} 45. gxh4 {[%clk 0:00:12]}  Kh5 {[%clk 0:00:44]} 46. Qf7 {[%clk 0:00:11]}  Kg4 {[%clk 0:00:44]} 47. Qxg6+ {[%clk 0:00:11]}  Kxh4 {[%clk 0:00:45]} 48. Qg3+ {[%clk 0:00:07]}  Kh5 {[%clk 0:00:44]} 49. Bb2 {[%clk 0:00:07]}  Kh6 {[%clk 0:00:43]} 50. Bc1 {[%clk 0:00:08]}  Kh7 {[%clk 0:00:43]} 51. Kf3 {[%clk 0:00:09]}  Kh6 {[%clk 0:00:43]} 52. Ke2 {[%clk 0:00:10]}  Kh5 {[%clk 0:00:44]} 53. Kd3 {[%clk 0:00:11]}  Kh6 {[%clk 0:00:45]} 54. Kd4 {[%clk 0:00:12]}  Kh7 {[%clk 0:00:46]} 55. Kd5 {[%clk 0:00:13]}  Kh6 {[%clk 0:00:46]} 56. Kc4 {[%clk 0:00:14]}  Kh5 {[%clk 0:00:47]} 57. Kc5 {[%clk 0:00:14]}  Kh6 {[%clk 0:00:48]} 58. Kb4 {[%clk 0:00:15]}  Kh5 {[%clk 0:00:49]} 59. Kb5 {[%clk 0:00:16]}  Kh6 {[%clk 0:00:49]} 60. Ka4 {[%clk 0:00:17]}  Kh5 {[%clk 0:00:50]} 61. Ka5 {[%clk 0:00:18]}  Kh6 {[%clk 0:00:51]} 62. Ka6 {[%clk 0:00:19]}  Kh5 {[%clk 0:00:52]} 63. Kb6 {[%clk 0:00:20]}  Kh6 {[%clk 0:00:53]} 64. Kc6 {[%clk 0:00:21]}  Kh5 {[%clk 0:00:54]} 65. Bd2 {[%clk 0:00:22]}  Kh6 {[%clk 0:00:55]} 66. Kd7 {[%clk 0:00:23]}  Kh5 {[%clk 0:00:56]} 67. Kd6 {[%clk 0:00:23]}  Kh6 {[%clk 0:00:57]} 68. Ke6 {[%clk 0:00:24]}  Kh5 {[%clk 0:00:58]} 69. Ke5 {[%clk 0:00:25]}  Kh6 {[%clk 0:00:58]} 70. Kd5 {[%clk 0:00:26]}  Kh5 {[%clk 0:00:59]} 71. Kd4 {[%clk 0:00:27]}  Kh6 {[%clk 0:01:00]} 72. Kc4 {[%clk 0:00:28]}  Kh7 {[%clk 0:01:01]} 73. Kc3 {[%clk 0:00:29]}  Kh8 {[%clk 0:01:02]} 74. Kb4 {[%clk 0:00:30]}  Kh7 {[%clk 0:01:03]} 75. Kb3 {[%clk 0:00:31]}  Kh8 {[%clk 0:01:04]} 76. Ka4 {[%clk 0:00:32]}  Kh7 {[%clk 0:01:05]} 77. Ka3 {[%clk 0:00:32]}  Kh8 {[%clk 0:01:06]} 78. h3 {[%clk 0:00:33]}  Kh7 {[%clk 0:01:07]} 79. Ka2 {[%clk 0:00:34]}  Kh8 {[%clk 0:01:07]} 80. Ka1 {[%clk 0:00:35]}  Kh7 {[%clk 0:01:08]} 81. Kb2 {[%clk 0:00:36]}  Kh6 {[%clk 0:01:08]} 82. Kb1 {[%clk 0:00:37]}  Kh5 {[%clk 0:01:09]} 83. Kc2 {[%clk 0:00:38]}  Kh6 {[%clk 0:01:09]} 84. Kc1 {[%clk 0:00:39]}  Kh7 {[%clk 0:01:10]} 85. Kd1 {[%clk 0:00:40]}  Kh8 {[%clk 0:01:11]} 86. Ke2 {[%clk 0:00:41]}  Kh7 {[%clk 0:01:12]} 87. Ke1 {[%clk 0:00:41]}  Kh8 {[%clk 0:01:13]} 88. Kf2 {[%clk 0:00:42]}  Kh7 {[%clk 0:01:14]} 89. Kf1 {[%clk 0:00:43]}  Kh6 {[%clk 0:01:15]} 90. Kg2 {[%clk 0:00:44]}  Kh7 {[%clk 0:01:16]} 91. Kg1 {[%clk 0:00:45]}  Kh6 {[%clk 0:01:17]} 92. Kh2 {[%clk 0:00:46]}  Kh5 {[%clk 0:01:17]} 93. Kh1 {[%clk 0:00:47]}  Kh6 {[%clk 0:01:18]} 94. Kg2 {[%clk 0:00:48]}  Kh7 {[%clk 0:01:19]} 95. Kf3 {[%clk 0:00:49]}  Kh8 {[%clk 0:01:20]} 96. Ke3 {[%clk 0:00:50]}  Kh7 {[%clk 0:01:21]} 97. Kd4 {[%clk 0:00:50]}  Kh6 {[%clk 0:01:22]} 98. Ke5 {[%clk 0:00:51]}  Kh5 {[%clk 0:01:23]} 99. Kxf5 {[%clk 0:00:52]}  Kh6 {[%clk 0:01:24]} 100. Ke4 {[%clk 0:00:53]}  Kh7 {[%clk 0:01:25]} 101. Kd4 {[%clk 0:00:54]}  Kh8 {[%clk 0:01:26]} 102. Kd3 {[%clk 0:00:55]}  Kh7 {[%clk 0:01:26]} 103. Be1 {[%clk 0:00:56]}  Kh6 {[%clk 0:01:27]} 104. Ke2 {[%clk 0:00:57]}  Kh5 {[%clk 0:01:28]} 105. Kd1 {[%clk 0:00:58]}  Kh6 {[%clk 0:01:29]} 106. Kd2 {[%clk 0:00:59]}  Kh7 {[%clk 0:01:30]} 107. Kc2 {[%clk 0:00:59]}  Kh8 {[%clk 0:01:31]} 108. Kc1 {[%clk 0:01:00]}  Kh7 {[%clk 0:01:32]} 109. Kb2 {[%clk 0:01:01]}  Kh6 {[%clk 0:01:33]} 110. Kb1 {[%clk 0:01:02]}  Kh5 {[%clk 0:01:34]} 111. Ka2 {[%clk 0:01:03]}  Kh6 {[%clk 0:01:35]} 112. Ka1 {[%clk 0:01:04]}  Kh7 {[%clk 0:01:35]} 113. Kb2 {[%clk 0:01:05]}  Kh8 {[%clk 0:01:36]} 114. Ka3 {[%clk 0:01:06]}  Kh7 {[%clk 0:01:37]} 115. Kb3 {[%clk 0:01:07]}  Kh6 {[%clk 0:01:38]} 116. Kb4 {[%clk 0:01:08]}  Kh5 {[%clk 0:01:39]} 117. Ka4 {[%clk 0:01:08]}  Kh6 {[%clk 0:01:40]} 118. Ka5 {[%clk 0:01:09]}  Kh7 {[%clk 0:01:41]} 119. Kb5 {[%clk 0:01:10]}  Kh8 {[%clk 0:01:41]} 120. Kc5 {[%clk 0:01:11]}  Kh7 {[%clk 0:01:42]} 121. Kc4 {[%clk 0:01:12]}  Kh6 {[%clk 0:01:43]} 122. Kd5 {[%clk 0:01:13]}  Kh5 {[%clk 0:01:44]} 123. Kd4 {[%clk 0:01:14]}  Kh6 {[%clk 0:01:45]} 124. Ke5 {[%clk 0:01:15]}  Kh7 {[%clk 0:01:46]} 125. Ke4 {[%clk 0:01:16]}  Kh8 {[%clk 0:01:47]} 126. Qg4 {[%clk 0:01:17]}  Kh7 {[%clk 0:01:48]} 127. Ke5 {[%clk 0:01:17]}  Kh6 {[%clk 0:01:49]} 128. Kd5 {[%clk 0:01:18]}  Kh7 {[%clk 0:01:50]} 129. Kc6 {[%clk 0:01:19]}  Kh8 {[%clk 0:01:50]} 130. Kc5 {[%clk 0:01:20]}  Kh7 {[%clk 0:01:51]} 131. Kb6 {[%clk 0:01:21]}  Kh8 {[%clk 0:01:52]} 132. Kb5 {[%clk 0:01:22]}  Kh7 {[%clk 0:01:53]} 133. Ka6 {[%clk 0:01:23]}  Kh8 {[%clk 0:01:54]} 134. Ka7 {[%clk 0:01:24]}  Kh7 {[%clk 0:01:55]} 135. Kb7 {[%clk 0:01:25]}  Kh6 {[%clk 0:01:56]} 136. Ka8 {[%clk 0:01:26]}  Kh7 {[%clk 0:01:57]} 137. Kb8 {[%clk 0:01:26]}  Kh8 {[%clk 0:01:58]} 138. Kc8 {[%clk 0:01:27]}  Kh7 {[%clk 0:01:59]} 139. Kc7 {[%clk 0:01:28]}  Kh6 {[%clk 0:01:59]} 140. Kd7 {[%clk 0:01:29]}  Kh7 {[%clk 0:02:00]} 141. Kd8 {[%clk 0:01:30]}  Kh8 {[%clk 0:02:01]} 142. Ke7 {[%clk 0:01:31]}  Kh7 {[%clk 0:02:02]} 143. Ke6 {[%clk 0:01:32]}  Kh6 {[%clk 0:02:03]} 144. Ke5 {[%clk 0:01:33]}  Kh7 {[%clk 0:02:04]} 145. Ke4 {[%clk 0:01:34]}  Kh8 {[%clk 0:02:05]} 146. Kf3 {[%clk 0:01:35]}  Kh7 {[%clk 0:02:05]} 147. Kf2 {[%clk 0:01:35]}  Kh6 {[%clk 0:02:06]} 148. Kg3 {[%clk 0:01:36]}  Kh7 {[%clk 0:02:07]} 149. Kg2 {[%clk 0:01:37]} 1/2-1/2


[Site "https://www.chess.com"]

[Event "Titled Tuesday Blitz August 24 2021"]
[White "Murzin, Volodar"]
[Black "Svane, Rasmus"]
[WhiteFideId "44155573"]
[BlackFideId "4657101"]
[WhiteElo "2541"]
[BlackElo "2669"]
[Result "0-1"]
[Round "10"]
[TimeControl "180+1"]
[Date "2021.08.24"]
[WhiteClock "0:00:01"]
[BlackClock "0:00:23"]

1. e4 {[%clk 0:03:00]}  c6 {[%clk 0:03:00]} 2. Nf3 {[%clk 0:02:56]}  d5 {[%clk 0:03:00]} 3. d3 {[%clk 0:02:56]}  Qc7 {[%clk 0:02:55]} 4. exd5 {[%clk 0:02:30]}  cxd5 {[%clk 0:02:56]} 5. c4 {[%clk 0:02:30]}  Nf6 {[%clk 0:02:55]} 6. Nc3 {[%clk 0:02:30]}  e6 {[%clk 0:02:50]} 7. g3 {[%clk 0:02:10]}  Bb4 {[%clk 0:02:49]} 8. Bg2 {[%clk 0:02:09]}  O-O {[%clk 0:02:48]} 9. O-O {[%clk 0:02:02]}  dxc4 {[%clk 0:02:47]} 10. Bg5 {[%clk 0:01:55]}  Bxc3 {[%clk 0:02:44]} 11. bxc3 {[%clk 0:01:53]}  Nd5 {[%clk 0:02:44]} 12. Rc1 {[%clk 0:01:32]}  h6 {[%clk 0:02:44]} 13. Bd2 {[%clk 0:01:31]}  Rd8 {[%clk 0:02:41]} 14. dxc4 {[%clk 0:01:24]}  Qxc4 {[%clk 0:02:40]} 15. Ne5 {[%clk 0:01:19]}  Qc7 {[%clk 0:02:37]} 16. Qe2 {[%clk 0:01:17]}  Nd7 {[%clk 0:02:07]} 17. Nf3 {[%clk 0:00:56]}  Nc5 {[%clk 0:01:46]} 18. c4 {[%clk 0:00:55]}  Nf6 {[%clk 0:01:46]} 19. Bf4 {[%clk 0:00:48]}  Qa5 {[%clk 0:01:36]} 20. Ne5 {[%clk 0:00:46]}  Bd7 {[%clk 0:01:31]} 21. Qf3 {[%clk 0:00:21]}  Nce4 {[%clk 0:00:58]} 22. Qe3 {[%clk 0:00:16]}  Nd6 {[%clk 0:00:53]} 23. Rfd1 {[%clk 0:00:12]}  Nf5 {[%clk 0:00:54]} 24. Qb3 {[%clk 0:00:04]}  Bc6 {[%clk 0:00:33]} 25. Bxc6 {[%clk 0:00:03]}  bxc6 {[%clk 0:00:26]} 26. Nxc6 {[%clk 0:00:02]}  Rxd1+ {[%clk 0:00:24]} 27. Rxd1 {[%clk 0:00:03]}  Qc5 {[%clk 0:00:23]} 28. Ne5 {[%clk 0:00:01]}  Rc8 {[%clk 0:00:23]} 0-1


[Site "https://www.chess.com"]